bitfinex/quotes_BTCUSD_20240908
["timestamp","ask_amount","ask_price","bid_price","bid_amount"]
[1725757381986,0.002,54311.0,54310.0,0.98134]
[1725757382217,0.002,54311.0,54310.0,1.05694]
[1725757383720,0.002,54311.0,54310.0,0.688684]
[1725757384158,0.002,54311.0,54310.0,1.05694]
[1725757384387,0.002,54311.0,54310.0,0.688684]
[1725757384804,0.002,54311.0,54310.0,1.05694]
[1725757385281,0.002,54311.0,54310.0,0.688684]
[1725757387769,0.000814,54312.0,54311.0,0.552373]
[1725757389527,0.000814,54312.0,54311.0,0.990022]
[1725757390841,0.000814,54312.0,54311.0,0.621773]
[1725757391082,0.13241778,54312.0,54311.0,0.621773]
[1725757391943,0.31653878,54312.0,54311.0,0.003]
[1725757392159,0.09054434,54312.0,54311.0,0.003]
[1725757392568,0.14586936,54312.0,54311.0,0.187124]
[1725757393068,0.14586936,54312.0,54311.0,0.003]
[1725757393271,0.05613902,54312.0,54311.0,0.631973]
[1725757393482,0.05613902,54312.0,54311.0,0.692273]
[1725757393483,0.000814,54312.0,54311.0,0.692273]
[1725757394931,0.002814,54312.0,54311.0,0.692273]
[1725757395345,0.000814,54312.0,54311.0,0.692273]
[1725757395759,0.000814,54312.0,54311.0,0.695273]
[1725757398917,0.000814,54312.0,54311.0,0.327024]
[1725757399140,0.000814,54312.0,54311.0,0.003]
[1725757399819,0.553177,54312.0,54311.0,0.003]
[1725757400538,0.184935,54312.0,54311.0,0.003]
[1725757401684,0.184935,54312.0,54310.0,0.001628]
[1725757401685,0.184124,54311.0,54310.0,0.001628]
[1725757401922,0.23945711,54311.0,54310.0,0.001628]
[1725757402174,0.05533311,54311.0,54310.0,0.001628]
[1725757404065,0.05533311,54311.0,54310.0,0.065328]
[1725757405253,0.05533311,54311.0,54310.0,0.249456]
[1725757405969,0.05533311,54311.0,54310.0,0.065328]
[1725757406624,0.0850022,54312.0,54310.0,0.065328]
[1725757407708,0.02967087,54312.0,54310.0,0.065328]
[1725757408156,0.03167087,54312.0,54310.0,0.065328]
[1725757408786,0.03367087,54312.0,54310.0,0.065328]
[1725757408998,0.02967087,54312.0,54310.0,0.065328]
[1725757410289,0.02967087,54312.0,54310.0,0.249455]
[1725757413416,0.02967087,54312.0,54310.0,0.065328]
[1725757414335,0.02967087,54312.0,54311.0,0.261424]
[1725757414553,0.02967087,54312.0,54311.0,0.693373]
[1725757414989,0.000814,54312.0,54311.0,0.693373]
[1725757416114,0.000814,54312.0,54311.0,0.697373]
[1725757416328,0.000814,54312.0,54311.0,0.693373]
[1725757416534,0.00062988,54312.0,54311.0,0.693373]
[1725757417839,0.00062988,54312.0,54311.0,0.696373]
[1725757418077,0.00062988,54312.0,54311.0,0.693373]
[1725757418506,0.00062988,54312.0,54311.0,0.696373]
[1725757419364,0.00062988,54312.0,54311.0,1.064622]
[1725757421777,0.00062988,54312.0,54311.0,1.432871]
[1725757426252,0.00062988,54312.0,54311.0,1.80112]
[1725757426481,0.00062988,54312.0,54311.0,1.93412]
[1725757427095,0.00062988,54312.0,54311.0,1.92412]
[1725757427309,0.00062988,54312.0,54311.0,1.93412]
[1725757427721,0.00062988,54312.0,54311.0,1.93112]
[1725757427893,0.00062988,54312.0,54311.0,1.93412]
[1725757428963,0.00062988,54312.0,54311.0,1.93112]
[1725757429098,0.00062988,54312.0,54311.0,1.94512]
[1725757429099,0.00162988,54312.0,54311.0,1.94512]
[1725757429275,0.00162988,54312.0,54311.0,1.93512]
[1725757430556,0.00162988,54312.0,54311.0,1.94512]
[1725757434877,0.00162988,54312.0,54311.0,1.93512]
[1725757435292,0.00162988,54312.0,54311.0,1.93675]
[1725757436427,0.00162988,54312.0,54311.0,1.568501]
[1725757445884,0.00162988,54312.0,54311.0,1.93675]
[1725757446105,0.00162988,54312.0,54311.0,2.02648034]
[1725757449643,0.00162988,54312.0,54311.0,2.03848034]
[1725757450216,0.00162988,54312.0,54311.0,2.03648034]
[1725757455310,0.02747489,54321.0,54320.0,0.0626]
[1725757455544,0.30937023,54331.0,54327.0,0.184069]
[1725757455545,0.08973034,54330.0,54327.0,0.184069]
[1725757455758,0.08973034,54330.0,54328.0,0.184066]
[1725757457770,0.09473034,54330.0,54328.0,0.184066]
[1725757458227,0.09973034,54330.0,54328.0,0.184066]
[1725757458445,0.1185803,54330.0,54328.0,0.184066]
[1725757458898,0.1215803,54330.0,54328.0,0.184066]
[1725757459093,0.1223953,54330.0,54328.0,0.184066]
[1725757459568,0.03266496,54330.0,54328.0,0.184066]
[1725757465011,0.000815,54330.0,54328.0,0.184066]
[1725757465369,0.0552335,54329.0,54328.0,0.184066]
[1725757467185,0.08566526,54330.0,54326.0,0.184072]
[1725757467413,0.08566526,54330.0,54322.0,0.368169]
[1725757467414,0.05528633,54327.0,54322.0,0.368169]
[1725757467626,0.05528633,54328.0,54320.0,0.0629]
[1725757467852,0.05528633,54328.0,54323.0,0.368164]
[1725757468278,0.05528639,54328.0,54321.0,0.368179]
[1725757468491,0.05528639,54328.0,54327.0,0.368141]
[1725757468713,0.05528639,54328.0,54327.0,0.552211]
[1725757469177,0.11251514,54330.0,54327.0,0.0629]
[1725757469178,0.08495127,54330.0,54327.0,0.0629]
[1725757469489,0.08495127,54330.0,54329.0,0.55219]
[1725757469490,0.02966488,54330.0,54329.0,0.55219]
[1725757469509,0.02966488,54330.0,54329.0,0.920317]
[1725757471806,0.03166488,54330.0,54329.0,0.920317]
[1725757475112,0.002815,54330.0,54329.0,0.920317]
[1725757476048,0.000815,54330.0,54329.0,0.920317]
[1725757476268,0.05610985,54330.0,54329.0,0.920317]
[1725757476488,0.05710985,54330.0,54329.0,0.920317]
[1725757476710,0.05710239,54330.0,54329.0,0.920317]
[1725757481841,0.001815,54330.0,54329.0,0.920317]
[1725757484657,0.001815,54330.0,54329.0,0.921947]
[1725757486879,0.001815,54330.0,54329.0,0.984747]
[1725757489895,0.001815,54330.0,54329.0,1.429574]
[1725757490072,0.001815,54330.0,54329.0,1.529574]
[1725757498580,0.000815,54330.0,54329.0,1.529574]
[1725757498935,0.001815,54330.0,54329.0,1.537574]
[1725757499363,0.000815,54330.0,54329.0,1.529574]
[1725757499572,0.001815,54330.0,54329.0,1.537574]
[1725757500248,0.001815,54330.0,54329.0,1.169447]
[1725757500465,0.001815,54330.0,54329.0,1.537574]
[1725757501753,0.000815,54330.0,54329.0,1.529574]
[1725757501961,0.000815,54330.0,54329.0,1.538574]
[1725757502243,0.001815,54330.0,54329.0,1.538574]
[1725757503087,0.00082,54337.0,54329.0,1.538574]
[1725757503088,0.05524298,54347.0,54345.0,0.0762]
[1725757503224,0.0192774,54351.0,54349.0,1.41998]
[1725757503435,0.00152717,54355.0,54349.0,2.278964]
[1725757503603,0.00152717,54355.0,54349.0,1.887972]
[1725757503826,0.15033034,54354.0,54349.0,0.467992]
[1725757504030,0.15033034,54354.0,54349.0,0.1]
[1725757504241,0.15033034,54354.0,54349.0,0.651988]
[1725757504242,0.0606,54354.0,54349.0,0.651988]
[1725757504441,0.0606,54354.0,54349.0,1.01998]
[1725757504670,0.02687419,54352.0,54349.0,0.183996]
[1725757504870,0.02687419,54352.0,54349.0,0.551988]
[1725757505289,0.02687419,54352.0,54349.0,0.91998]
[1725757505490,0.02687419,54352.0,54349.0,0.551988]
[1725757505899,0.0116132,54350.0,54349.0,0.551988]
[1725757506117,0.0106132,54350.0,54349.0,0.183996]
[1725757506335,0.08973034,54357.0,54349.0,0.183996]
[1725757506336,0.7835,54383.0,54349.0,0.183996]
[1725757506539,0.08973034,54352.0,54349.0,0.001]
[1725757506972,0.08973034,54352.0,54349.0,0.184995]
[1725757507197,0.08973034,54352.0,54349.0,0.001]
[1725757507198,0.183992,54350.0,54349.0,0.001]
[1725757507415,0.08973034,54352.0,54349.0,0.001]
[1725757507706,0.367975,54352.0,54349.0,0.001]
[1725757507909,0.27372234,54350.0,54349.0,0.001]
[1725757508136,0.64170734,54350.0,54349.0,0.002]
[1725757508350,0.64170734,54350.0,54341.0,0.184021]
[1725757508351,0.27372234,54350.0,54341.0,0.184021]
[1725757508591,0.08973034,54345.0,54342.0,0.184019]
[1725757509216,0.08973034,54345.0,54343.0,0.184014]
[1725757509433,0.22773034,54345.0,54343.0,0.184014]
[1725757510042,0.22773034,54345.0,54335.0,0.368083]
[1725757510241,0.08973034,54342.0,54341.0,0.18402]
[1725757510462,0.08973034,54342.0,54341.0,0.552066]
[1725757512325,0.11642928,54342.0,54341.0,0.920112]
[1725757512721,0.02769894,54342.0,54341.0,0.920112]
[1725757515853,0.02769894,54342.0,54339.0,0.368059]
[1725757516070,0.02769894,54342.0,54341.0,0.184023]
[1725757516506,0.02769894,54342.0,54337.0,0.184035]
[1725757516732,0.02769894,54342.0,54335.0,0.552123]
[1725757516954,0.02669894,54342.0,54336.0,0.284039]
[1725757517160,0.0606,54345.0,54336.0,0.284039]
[1725757517738,0.08973034,54346.0,54337.0,0.0762]
[1725757517949,0.02663156,54346.0,54337.0,0.260236]
[1725757518319,0.002,54342.0,54338.0,0.368065]
[1725757518531,0.061414,54350.0,54338.0,0.368065]
[1725757518747,0.005,54345.0,54340.0,0.184025]
[1725757518970,0.005,54345.0,54342.0,0.184018]
[1725757519183,0.08823436,54350.0,54344.0,0.184011]
[1725757519184,0.000814,54350.0,54344.0,0.184011]
[1725757519366,0.000814,54350.0,54342.0,0.184018]
[1725757519601,0.000814,54350.0,54343.0,0.184015]
[1725757519805,0.000814,54350.0,54342.0,0.368039]
[1725757519806,0.000814,54350.0,54344.0,0.26021]
[1725757520016,0.000814,54350.0,54345.0,0.184008]
[1725757520252,0.000814,54348.0,54344.0,0.0762]
[1725757520459,0.000814,54348.0,54344.0,0.260212]
[1725757521520,0.000814,54348.0,54344.0,0.0762]
[1725757521723,0.000814,54348.0,54341.0,0.0636]
[1725757521930,0.000814,54348.0,54343.0,0.184016]
[1725757523208,0.001814,54348.0,54343.0,0.191016]
[1725757525592,0.001814,54348.0,54343.0,0.19469385]
[1725757526000,0.001814,54348.0,54344.0,0.184011]
[1725757526632,0.001814,54348.0,54347.0,0.552007]
[1725757526837,0.000814,54348.0,54347.0,0.652007]
[1725757527259,0.001814,54348.0,54347.0,0.652007]
[1725757528887,0.000814,54348.0,54347.0,0.652007]
[1725757529104,0.001814,54348.0,54347.0,0.659007]
[1725757529474,0.000814,54348.0,54347.0,0.652007]
[1725757530287,0.001814,54348.0,54347.0,0.663007]
[1725757537968,0.001814,54348.0,54347.0,0.723207]
[1725757540107,0.001814,54348.0,54347.0,0.111]
[1725757540337,0.001814,54348.0,54347.0,0.011]
[1725757540558,0.02494271,54348.0,54347.0,0.011]
[1725757544088,0.02494271,54348.0,54347.0,0.012628]
[1725757546271,0.02494271,54348.0,54347.0,0.27453]
[1725757546497,0.02494271,54348.0,54347.0,0.112628]
[1725757546720,0.001814,54348.0,54347.0,0.112628]
[1725757547159,0.001814,54348.0,54347.0,0.29663]
[1725757549545,0.001814,54348.0,54347.0,0.664635]
[1725757557548,0.001814,54348.0,54347.0,1.03264]
[1725757558202,0.001814,54348.0,54347.0,1.17344]
[1725757558698,0.000814,54350.0,54347.0,1.17344]
[1725757558945,0.11031541,54364.0,54347.0,1.17344]
[1725757558946,0.05521054,54380.0,54379.0,0.213894]
[1725757559161,0.00162783,54382.0,54381.0,0.551662]
[1725757559392,0.00162783,54382.0,54381.0,0.651662]
[1725757559608,0.00162783,54382.0,54381.0,1.019437]
[1725757560071,0.00162783,54382.0,54381.0,0.651662]
[1725757560343,0.00162783,54382.0,54381.0,1.19711762]
[1725757560581,0.00262783,54382.0,54381.0,1.67479262]
[1725757560791,0.00262783,54382.0,54381.0,1.73515484]
[1725757561081,0.00162783,54382.0,54381.0,0.394787]
[1725757561322,0.00262783,54382.0,54381.0,0.762562]
[1725757561553,0.00262783,54382.0,54381.0,0.772562]
[1725757562275,0.00262783,54382.0,54381.0,0.2109]
[1725757562485,0.00262783,54382.0,54381.0,0.11]
[1725757562688,0.00262783,54382.0,54381.0,0.01]
[1725757563100,0.00162783,54382.0,54380.0,0.1]
[1725757563498,0.00162783,54382.0,54381.0,0.014]
[1725757563728,0.00162783,54382.0,54380.0,0.1]
[1725757563961,0.00162783,54382.0,54374.0,0.181]
[1725757564190,0.0814,54381.0,54372.0,0.183916]
[1725757564410,0.0814,54381.0,54370.0,0.00367792]
[1725757564623,0.0814,54381.0,54367.0,0.5654]
[1725757564884,0.01943042,54380.0,54371.0,0.18392]
[1725757565111,0.0814,54381.0,54370.0,0.183923]
[1725757565326,0.01946767,54379.0,54370.0,0.18760092]
[1725757565547,0.0814,54381.0,54370.0,0.18760092]
[1725757565766,0.0814,54381.0,54371.0,0.1]
[1725757565991,0.0814,54381.0,54369.0,0.283926]
[1725757566215,0.01952236,54380.0,54369.0,0.283926]
[1725757566426,0.01952236,54380.0,54374.0,0.001]
[1725757566638,0.01952236,54380.0,54368.0,0.1]
[1725757566820,0.01952236,54380.0,54370.0,0.009]
[1725757567673,0.01952236,54380.0,54369.0,0.00367794]
[1725757569697,0.01952236,54380.0,54368.0,0.10367796]
[1725757569931,0.20341336,54380.0,54368.0,0.10367805]
[1725757570148,0.0629,54379.0,54368.0,0.10367809]
[1725757570592,0.01954107,54378.0,54368.0,0.10367809]
[1725757571050,0.01954107,54378.0,54367.0,0.00163]
[1725757571051,0.183912,54374.0,54367.0,0.00163]
[1725757571317,0.0814,54374.0,54367.0,0.00163]
[1725757571533,0.01961008,54373.0,54367.0,0.00163]
[1725757571985,0.16768062,54370.0,54367.0,0.00163]
[1725757572216,0.0629,54369.0,54367.0,0.00163]
[1725757572448,0.08248625,54369.0,54367.0,0.00163]
[1725757574458,0.01958625,54369.0,54367.0,0.08173]
[1725757574665,0.01958625,54369.0,54367.0,0.18540809]
[1725757574925,0.18632783,54382.0,54367.0,0.36934209]
[1725757575129,0.00244283,54382.0,54367.0,0.18540809]
[1725757575338,0.00244283,54382.0,54368.0,0.367858]
[1725757575339,0.01953462,54381.0,54368.0,0.367858]
[1725757575542,0.00244283,54382.0,54369.0,0.10367793]
[1725757575955,0.01957921,54381.0,54369.0,0.10367793]
[1725757576401,0.00244283,54382.0,54369.0,0.10367793]
[1725757576602,0.01955692,54381.0,54369.0,0.10367793]
[1725757576816,0.01955692,54381.0,54369.0,0.00367793]
[1725757577453,0.02055692,54381.0,54369.0,0.00367793]
[1725757577660,0.01955692,54381.0,54369.0,0.00367793]
[1725757578504,0.02055692,54381.0,54369.0,0.00367793]
[1725757579756,0.265292,54380.0,54369.0,0.00367793]
[1725757579960,0.183902,54377.0,54368.0,0.1]
[1725757580135,0.38739439,54379.0,54367.0,0.00163]
[1725757580136,0.01958871,54376.0,54367.0,0.00163]
[1725757580356,0.367789,54379.0,54367.0,0.00163]
[1725757580532,0.1443,54380.0,54367.0,0.00163]
[1725757580533,0.01959983,54378.0,54367.0,0.00163]
[1725757581158,0.01959983,54378.0,54368.0,0.003]
[1725757582152,0.20349783,54378.0,54368.0,0.003]
[1725757583709,0.20349783,54378.0,54367.0,0.00163]
[1725757583920,0.20449783,54378.0,54367.0,0.00163]
[1725757584200,0.02059983,54378.0,54367.0,0.00163]
[1725757584412,0.02059983,54378.0,54367.0,0.00530815]
[1725757584827,0.01959983,54378.0,54367.0,0.00530815]
[1725757585034,0.01959983,54378.0,54367.0,0.50530815]
[1725757585239,0.02059983,54378.0,54368.0,0.1]
[1725757585481,0.02059983,54378.0,54369.0,0.00367797]
[1725757586989,0.01959983,54378.0,54369.0,0.00367797]
[1725757587199,0.001,54378.0,54369.0,0.00367797]
[1725757587404,0.01955831,54377.0,54369.0,0.00367797]
[1725757587845,0.328192,54380.0,54369.0,0.00367797]
[1725757588049,0.01955275,54376.0,54369.0,0.00367797]
[1725757588265,0.328192,54380.0,54369.0,0.00367797]
[1725757588472,0.01954718,54375.0,54369.0,0.00367797]
[1725757588681,0.328192,54380.0,54369.0,0.00367797]
[1725757588888,0.01954162,54374.0,54369.0,0.00367797]
[1725757589116,0.328192,54380.0,54369.0,0.00367797]
[1725757589528,0.01956769,54379.0,54369.0,0.00367797]
[1725757589731,0.01956769,54379.0,54369.0,0.00467797]
[1725757590159,0.01956769,54379.0,54369.0,0.18760497]
[1725757590403,0.01956769,54379.0,54370.0,0.1]
[1725757590604,0.01956769,54379.0,54371.0,0.00367796]
[1725757591769,0.01952869,54378.0,54372.0,0.1415]
[1725757592070,0.000815,54380.0,54373.0,0.1]
[1725757593896,0.000815,54380.0,54373.0,0.103]
[1725757595344,0.01626183,54379.0,54373.0,0.103]
[1725757596215,0.01626183,54379.0,54373.0,0.1]
[1725757596422,0.01626183,54379.0,54373.0,0.101]
[1725757601168,0.20015683,54379.0,54373.0,0.101]
[1725757601343,0.38405483,54379.0,54373.0,0.101]
[1725757601569,0.38405483,54379.0,54374.0,0.1]
[1725757601570,0.01626183,54379.0,54374.0,0.1]
[1725757601796,0.20015583,54379.0,54373.0,0.001]
[1725757602202,0.183899,54378.0,54372.0,0.0799]
[1725757602392,0.01630845,54377.0,54372.0,0.0799]
[1725757602544,0.001,54379.0,54372.0,0.0799]
[1725757602745,0.20611738,54380.0,54372.0,0.0799]
[1725757602945,0.01631401,54378.0,54372.0,0.0799]
[1725757603261,0.01630845,54377.0,54373.0,0.001]
[1725757603499,0.01630845,54377.0,54372.0,0.0799]
[1725757603699,0.001,54379.0,54372.0,0.0799]
[1725757604028,0.01630289,54376.0,54372.0,0.0799]
[1725757604175,0.183898,54378.0,54372.0,0.0799]
[1725757604370,0.02222338,54380.0,54372.0,0.0799]
[1725757604371,0.183894,54379.0,54372.0,0.0799]
[1725757604584,0.01631401,54378.0,54372.0,0.0799]
[1725757605726,0.01631401,54378.0,54373.0,0.001]
[1725757605957,0.20611438,54380.0,54372.0,0.0799]
[1725757605958,0.183895,54379.0,54372.0,0.0799]
[1725757606174,0.01629857,54377.0,54372.0,0.0799]
[1725757606388,0.01630413,54378.0,54372.0,0.0799]
[1725757606605,0.01629301,54376.0,54372.0,0.0799]
[1725757606832,0.01629857,54377.0,54372.0,0.0799]
[1725757607039,0.01628745,54375.0,54372.0,0.0799]
[1725757607249,0.01629301,54376.0,54372.0,0.0799]
[1725757607454,0.01628189,54374.0,54372.0,0.0809]
[1725757607864,0.01627633,54373.0,54372.0,0.0809]
[1725757608295,0.183894,54379.0,54372.0,0.0809]
[1725757608504,0.01627633,54373.0,54372.0,0.0809]
[1725757608714,0.02222338,54380.0,54372.0,0.0799]
[1725757608935,0.20611538,54380.0,54372.0,0.0819]
[1725757609168,0.01631468,54379.0,54372.0,0.0799]
[1725757609463,0.20020968,54379.0,54372.0,0.0799]
[1725757609682,0.20120968,54379.0,54372.0,0.0799]
[1725757609899,0.01631468,54379.0,54372.0,0.0799]
[1725757610348,0.01359,54378.0,54372.0,0.0799]
[1725757610731,0.183892,54380.0,54372.0,0.0799]
[1725757610968,0.01358444,54377.0,54372.0,0.0799]
[1725757611211,0.183892,54380.0,54372.0,0.0799]
[1725757611422,0.01357888,54376.0,54372.0,0.0799]
[1725757611643,0.183892,54380.0,54372.0,0.0799]
[1725757612099,0.01359556,54379.0,54372.0,0.0799]
[1725757612736,0.20576585,54381.0,54372.0,0.0799]
[1725757612948,0.01356771,54378.0,54372.0,0.0799]
[1725757613404,0.367771,54382.0,54372.0,0.0799]
[1725757613594,0.01356215,54377.0,54372.0,0.0799]
[1725757613826,0.183892,54380.0,54372.0,0.0799]
[1725757614042,0.01355659,54376.0,54372.0,0.0799]
[1725757614255,0.183892,54380.0,54372.0,0.0799]
[1725757614538,0.01354734,54375.0,54372.0,0.0799]
[1725757614745,0.183892,54380.0,54372.0,0.0799]
[1725757615079,0.01355055,54379.0,54372.0,0.0799]
[1725757616489,0.01355055,54379.0,54372.0,0.0829]
[1725757616694,0.01355055,54379.0,54372.0,0.08153]
[1725757617539,0.184704,54381.0,54372.0,0.08153]
[1725757617758,0.01355845,54378.0,54372.0,0.08153]
[1725757618082,0.01355289,54377.0,54372.0,0.08153]
[1725757618306,0.183892,54380.0,54372.0,0.08153]
[1725757618730,0.01356401,54379.0,54372.0,0.08153]
[1725757619616,0.0657,54374.0,54372.0,0.00163]
[1725757619852,0.551743,54373.0,54372.0,0.00163]
[1725757620075,0.56530788,54373.0,54372.0,0.00163]
[1725757620302,0.19747888,54373.0,54372.0,0.00163]
[1725757620517,0.01356488,54373.0,54372.0,0.00163]
[1725757621380,0.19747888,54373.0,54372.0,0.00163]
[1725757622012,0.19747888,54373.0,54372.0,0.00663]
[1725757622503,0.01356488,54373.0,54372.0,0.00663]
[1725757623129,0.183901,54378.0,54372.0,0.00663]
[1725757623363,0.01356552,54373.0,54372.0,0.00663]
[1725757623564,0.183902,54377.0,54372.0,0.00663]
[1725757623772,0.01356552,54373.0,54372.0,0.00663]
[1725757623975,0.183902,54377.0,54372.0,0.00663]
[1725757624188,0.01356552,54373.0,54372.0,0.00663]
[1725757624394,0.183902,54377.0,54372.0,0.00663]
[1725757624610,0.01356552,54373.0,54372.0,0.00663]
[1725757624817,0.38914975,54379.0,54372.0,0.00163]
[1725757625030,0.01356552,54373.0,54372.0,0.00163]
[1725757625233,0.183901,54377.0,54372.0,0.00263]
[1725757625369,0.01354947,54373.0,54372.0,0.14133]
[1725757625577,0.183898,54378.0,54372.0,0.14133]
[1725757625775,0.0135429,54373.0,54372.0,0.14633]
[1725757625999,0.183898,54378.0,54372.0,0.14633]
[1725757626215,0.0135206,54373.0,54372.0,0.14633]
[1725757626374,0.02135475,54379.0,54372.0,0.14633]
[1725757626571,0.0134514,54373.0,54372.0,0.20135669]
[1725757626781,0.20651178,54381.0,54372.0,0.20135669]
[1725757626987,0.183891,54380.0,54372.0,0.20135669]
[1725757627194,0.01354282,54379.0,54372.0,0.20135669]
[1725757627410,0.01354282,54379.0,54372.0,0.19635669]
[1725757627611,0.01128012,54378.0,54372.0,0.14133]
[1725757627848,0.367775,54381.0,54372.0,0.14133]
[1725757628073,0.183894,54379.0,54372.0,0.14133]
[1725757628270,0.183894,54379.0,54372.0,0.14333]
[1725757628524,0.01128352,54378.0,54372.0,0.14333]
[1725757628974,0.01128352,54378.0,54372.0,0.14733]
[1725757629102,0.01128352,54378.0,54372.0,0.14133]
[1725757629318,0.183889,54381.0,54372.0,0.14133]
[1725757629519,0.01127796,54377.0,54372.0,0.14133]
[1725757629725,0.183889,54381.0,54372.0,0.14133]
[1725757629942,0.0112724,54376.0,54372.0,0.14133]
[1725757630146,0.183889,54381.0,54372.0,0.14133]
[1725757630565,0.183889,54381.0,54372.0,0.14233]
[1725757630566,0.01129464,54380.0,54372.0,0.14233]
[1725757630947,0.01129464,54380.0,54372.0,0.14133]
[1725757631168,0.19518564,54380.0,54372.0,0.14133]
[1725757631382,0.01129464,54380.0,54372.0,0.14633]
[1725757631800,0.01129464,54380.0,54372.0,0.14133]
[1725757632050,0.368578,54383.0,54378.0,0.183897]
[1725757632051,0.000815,54383.0,54378.0,0.183897]
[1725757632288,0.000815,54383.0,54379.0,0.183894]
[1725757632711,0.000815,54383.0,54378.0,0.1397]
[1725757632932,0.000815,54383.0,54378.0,0.32727338]
[1725757633147,0.000815,54383.0,54378.0,0.14337738]
[1725757633362,0.000815,54383.0,54378.0,0.1397]
[1725757633588,0.000815,54383.0,54378.0,0.14337739]
[1725757633796,0.000815,54383.0,54378.0,0.32727439]
[1725757634009,0.000815,54383.0,54378.0,0.14337739]
[1725757634231,0.000815,54383.0,54378.0,0.1397]
[1725757634646,0.000815,54383.0,54378.0,0.1447]
[1725757635519,0.01136017,54382.0,54378.0,0.1447]
[1725757635728,0.01136017,54382.0,54378.0,0.144]
[1725757636602,0.01136017,54382.0,54378.0,0.1434]
[1725757637033,0.01136017,54382.0,54378.0,0.1384]
[1725757637238,0.01136017,54382.0,54378.0,0.1443]
[1725757637465,0.000815,54383.0,54379.0,0.00317738]
[1725757638120,0.000815,54383.0,54379.0,0.18687038]
[1725757638544,0.000815,54383.0,54380.0,0.0614]
[1725757638761,0.000815,54383.0,54380.0,0.24529]
[1725757638969,0.000815,54383.0,54381.0,0.00297738]
[1725757639191,0.000815,54383.0,54382.0,1.136052]
[1725757639412,0.000815,54383.0,54382.0,0.868284]
[1725757640098,0.000815,54383.0,54382.0,1.236052]
[1725757640301,0.000815,54383.0,54382.0,0.946584]
[1725757640733,0.000815,54383.0,54382.0,0.954584]
[1725757642051,0.000815,54383.0,54382.0,0.946584]
[1725757642455,0.000815,54383.0,54382.0,0.7627]
[1725757643132,0.000815,54383.0,54382.0,0.946584]
[1725757643350,0.000815,54383.0,54382.0,0.956584]
[1725757646874,0.000815,54383.0,54382.0,1.324352]
[1725757647928,0.000815,54383.0,54382.0,0.946584]
[1725757648127,0.000815,54383.0,54382.0,1.89512]
[1725757648329,0.000815,54383.0,54382.0,2.272888]
[1725757648606,0.000815,54383.0,54382.0,2.40997469]
[1725757648841,0.000815,54383.0,54382.0,2.272888]
[1725757649452,0.000815,54383.0,54382.0,2.4098796]
[1725757649668,0.000815,54383.0,54382.0,2.3998796]
[1725757650117,0.000815,54383.0,54382.0,2.4138796]
[1725757651631,0.000815,54383.0,54382.0,2.38642056]
[1725757652803,0.000815,54383.0,54382.0,2.38637702]
[1725757653622,0.000815,54383.0,54382.0,2.276888]
[1725757654512,0.000815,54383.0,54382.0,2.35897379]
[1725757655180,0.000815,54383.0,54382.0,2.276888]
[1725757655622,0.000815,54383.0,54382.0,2.33160777]
[1725757656456,0.000815,54383.0,54382.0,2.276888]
[1725757656673,0.000815,54383.0,54382.0,2.262888]
[1725757656880,0.000815,54383.0,54382.0,2.276888]
[1725757657278,0.000815,54383.0,54382.0,2.262888]
[1725757657497,0.000815,54383.0,54382.0,2.276888]
[1725757658170,0.000815,54383.0,54382.0,2.36629352]
[1725757658384,0.000815,54383.0,54382.0,2.42099699]
[1725757659290,0.000815,54383.0,54382.0,2.42099251]
[1725757660532,0.000815,54383.0,54382.0,2.89699251]
[1725757660937,0.000815,54383.0,54382.0,2.84229352]
[1725757661361,0.000815,54383.0,54382.0,2.92433809]
[1725757661580,0.000815,54383.0,54382.0,2.84229352]
[1725757662982,0.000815,54383.0,54382.0,2.92571347]
[1725757663192,0.000815,54383.0,54382.0,3.00775804]
[1725757663414,0.000815,54383.0,54382.0,3.02175804]
[1725757663628,0.000815,54383.0,54382.0,2.84229352]
[1725757663837,0.000815,54383.0,54382.0,2.89697743]
[1725757666240,0.000815,54383.0,54382.0,2.9949478]
[1725757666472,0.000815,54383.0,54382.0,3.0667901]
[1725757666756,0.000815,54383.0,54382.0,3.0394573]
[1725757666970,0.000815,54383.0,54382.0,2.92430694]
[1725757667176,0.000815,54383.0,54382.0,2.9391512]
[1725757667389,0.000815,54383.0,54382.0,2.99383092]
[1725757668284,0.000815,54383.0,54382.0,2.9391512]
[1725757668508,0.000815,54383.0,54382.0,2.95633412]
[1725757668729,0.000815,54383.0,54382.0,3.03834754]
[1725757669588,0.000815,54383.0,54382.0,3.09307507]
[1725757670672,0.000815,54383.0,54382.0,2.95633412]
[1725757670892,0.000815,54383.0,54382.0,3.06572048]
[1725757671118,0.000815,54383.0,54382.0,2.95633178]
[1725757671347,0.000815,54383.0,54382.0,3.42872059]
[1725757671565,0.000815,54383.0,54382.0,3.42873376]
[1725757672027,0.000815,54383.0,54382.0,3.44986196]
[1725757672469,0.000815,54383.0,54382.0,3.4498772]
[1725757672685,0.000815,54383.0,54382.0,3.34045678]
[1725757673108,0.000815,54383.0,54382.0,3.44987193]
[1725757673308,0.000815,54383.0,54382.0,3.47736225]
[1725757673512,0.000815,54383.0,54382.0,3.44987193]
[1725757674160,0.000815,54383.0,54382.0,3.44987301]
[1725757675197,0.000815,54383.0,54382.0,3.08687301]
[1725757675613,0.000815,54383.0,54382.0,3.11418971]
[1725757676490,0.000815,54383.0,54382.0,2.97745786]
[1725757676809,0.000815,54383.0,54382.0,3.11432463]
[1725757677013,0.000815,54383.0,54382.0,2.97745786]
[1725757677229,0.000815,54383.0,54382.0,2.9602762]
[1725757677429,0.000815,54383.0,54382.0,2.97745719]
[1725757677650,0.000815,54383.0,54382.0,2.97745778]
[1725757679111,0.000815,54383.0,54382.0,3.11436737]
[1725757679318,0.000815,54383.0,54382.0,2.97745778]
[1725757679965,0.000815,54383.0,54382.0,3.70822578]
[1725757680167,0.000815,54383.0,54382.0,3.46039109]
[1725757680364,0.000815,54383.0,54382.0,3.34522578]
[1725757680543,0.000815,54383.0,54382.0,3.4603937]